lending/lending_fUSD_20241229
["ID","MTS","AMOUNT","RATE_DAILY","PERIOD"]
[347058731,1735487146261,-557.20839856,0.00011541,2]
[347058732,1735487150580,-500.0,0.0001154,2]
[347058733,1735487150608,-876.29160144,0.00011541,2]
[347058734,1735487150630,-500.0,0.00011541,2]
[347058735,1735487150653,-500.0,0.00011541,2]
[347058736,1735487150675,-1493.28,0.00011541,2]
[347058737,1735487150697,-993.57,0.00011541,2]
[347058738,1735487150721,-500.0,0.00011541,2]
[347058739,1735487150745,-500.0,0.00011541,2]
[347058740,1735487150769,-500.0,0.00011541,2]
[347058741,1735487150794,-1548.36,0.00011541,2]
[347058742,1735487150816,-500.0,0.00011541,2]
[347058743,1735487150838,-804.19,0.00011541,2]
[347058744,1735487150861,-500.0,0.00011541,2]
[347058745,1735487150884,-284.30839856,0.00011541,2]
[347058746,1735487159454,-500.0,0.0001154,2]
[347058747,1735487159478,-2166.6,0.0001154,2]
[347058748,1735487159501,-3703.64,0.0001154,2]
[347058749,1735487159523,-215.69160144,0.00011541,2]
[347058750,1735487159548,-941.53,0.00011541,2]
[347058751,1735487159570,-500.0,0.00011541,2]
[347058752,1735487159594,-500.0,0.00011541,2]
[347058753,1735487159616,-1472.53839856,0.00011541,2]
[347058754,1735487163657,-802.69,0.0001154,2]
[347058755,1735487163681,-500.0,0.0001154,2]
[347058756,1735487163706,-929.47,0.0001154,2]
[347058757,1735487163736,-749.24,0.0001154,2]
[347058758,1735487163759,-300.0,0.0001154,2]
[347058759,1735487163788,-3232.70160144,0.00011541,2]
[347058760,1735487163810,-1470.37,0.00011541,2]
[347058761,1735487163834,-518.83,0.00011541,2]
[347058762,1735487163858,-1496.69839856,0.00011541,2]
[347058763,1735487170049,-745.16160144,0.00011541,2]
[347058764,1735487170073,-500.0,0.00011541,2]
[347058765,1735487170096,-530.54,0.00011541,2]
[347058766,1735487170119,-500.0,0.00011541,2]
[347058767,1735487170142,-399.27832504,0.00011541,2]
[347058768,1735487170163,-500.0,0.00011541,2]
[347058769,1735487170186,-969.69,0.00011541,2]
[347058770,1735487170211,-1922.96,0.00011541,2]
[347058771,1735487170234,-500.0,0.00011541,2]
[347058772,1735487170256,-500.0,0.00011541,2]
[347058773,1735487170278,-500.0,0.00011541,2]
[347058774,1735487170301,-500.0,0.00011541,2]
[347058775,1735487170322,-500.0,0.00011541,2]
[347058776,1735487170344,-1432.37007352,0.00011541,2]
[347058777,1735487175816,-500.0,0.0001154,2]
[347058778,1735487175841,-500.0,0.0001154,2]
[347058779,1735487175867,-788.08992648,0.00011541,2]
[347058780,1735487175892,-500.0,0.00011541,2]
[347058781,1735487175916,-1576.89,0.00011541,2]
[347058782,1735487175939,-755.28,0.00011541,2]
[347058783,1735487175962,-500.0,0.00011541,2]
[347058784,1735487175986,-500.0,0.00011541,2]
[347058785,1735487176009,-1610.0,0.00011541,2]
[347058786,1735487176034,-500.0,0.00011541,2]
[347058787,1735487176060,-1193.26,0.00011541,2]
[347058788,1735487176083,-1076.48007352,0.00011541,2]
[347058789,1735487181786,-5872.55,0.0001154,2]
[347058790,1735487181812,-500.0,0.0001154,2]
[347058791,1735487181835,-2419.32,0.0001154,2]
[347058792,1735487181857,-500.0,0.0001154,2]
[347058793,1735487181879,-500.0,0.0001154,2]
[347058794,1735487181900,-208.13,0.00011541,2]
[347058795,1735487186857,-500.0,0.0001154,2]
[347058796,1735487186881,-500.0,0.0001154,2]
[347058797,1735487186906,-5055.07992648,0.00011541,2]
[347058798,1735487186931,-500.0,0.00011541,2]
[347058799,1735487186956,-652.23,0.00011541,2]
[347058800,1735487186980,-812.59,0.00011541,2]
[347058801,1735487187004,-500.0,0.00011541,2]
[347058802,1735487187027,-500.0,0.00011541,2]
[347058803,1735487187051,-500.0,0.00011541,2]
[347058804,1735487187074,-480.10007352,0.00011541,2]
[347058805,1735487191636,-500.0,0.0001154,2]
[347058806,1735487191659,-500.0,0.0001154,2]
[347058807,1735487191681,-500.0,0.0001154,2]
[347058808,1735487191703,-500.0,0.0001154,2]
[347058809,1735487191729,-1838.17,0.0001154,2]
[347058810,1735487191752,-19.89992648,0.00011541,2]
[347058811,1735487191775,-1054.21,0.00011541,2]
[347058812,1735487191798,-3524.3,0.00011541,2]
[347058813,1735487191820,-1563.42007352,0.00011541,2]
[347058814,1735487223992,-300.0,0.00011539,2]
[347058815,1735487224017,-850.69,0.0001154,2]
[347058816,1735487224042,-500.0,0.0001154,2]
[347058817,1735487224068,-1483.84,0.0001154,2]
[347058818,1735487224092,-860.26,0.0001154,2]
[347058819,1735487224117,-500.0,0.0001154,2]
[347058820,1735487224140,-500.0,0.0001154,2]
[347058821,1735487224164,-4509.19,0.0001154,2]
[347058822,1735487224187,-496.02,0.0001154,2]
[347058823,1735487259223,250.0,0.00010778,2]
[347058824,1735487293930,-300.0,0.000115,4]
[347058825,1735487293955,-992.48,0.0001154,2]
[347058826,1735487293979,-215.63251722,0.0001154,2]
[347058827,1735487294003,-500.0,0.0001154,2]
[347058828,1735487294027,-671.53,0.0001154,2]
[347058829,1735487294050,-500.0,0.0001154,2]
[347058830,1735487294074,-388.80373237,0.0001154,2]
[347058831,1735487294099,-4005.2,0.0001154,2]
[347058832,1735487294122,-500.0,0.0001154,2]
[347058833,1735487294151,-500.0,0.0001154,2]
[347058834,1735487294175,-469.38335299,0.0001154,2]
[347058835,1735487294198,-956.97039742,0.0001154,2]
[347058837,1735487372372,1526.39,0.00010798,2]
[347058838,1735487400320,227.6,0.00016658,30]
[347058839,1735487430690,500.0,0.00018,30]
[347058860,1735487431536,-718.78087629,0.00011384,2]
[347058872,1735487431649,-228.94858371,0.00011384,2]
[347058875,1735487431659,-295.82075489,0.00011441,2]
[347058877,1735487431671,-471.32155123,0.00011441,2]
[347058883,1735487431747,-4896.86909388,0.00011441,2]
[347058884,1735487431763,-167.12359689,0.00011442,2]
[347058885,1735487431772,-300.0,0.00011539,2]
[347058886,1735487431782,-1170.96960258,0.0001154,2]
[347058887,1735487431791,-500.0,0.0001154,2]
[347058888,1735487431800,-885.04,0.0001154,2]
[347058889,1735487431809,-500.0,0.0001154,2]
[347058890,1735487431819,-500.0,0.0001154,2]
[347058891,1735487431828,-500.0,0.0001154,2]
[347058892,1735487431841,-71.38912665,0.0001154,2]
[347058893,1735487431852,-428.61087335,0.0001154,2]
[347058894,1735487431862,-828.2452708,0.0001154,2]
[347058895,1735487431879,-1703.7412239,0.0001154,2]
[347058896,1735487431890,-3543.5535053,0.0001154,2]
[347058897,1735487431899,-500.0,0.0001154,2]
[347058898,1735487431909,-500.0,0.0001154,2]
[347058899,1735487431918,-500.0,0.0001154,2]
[347058900,1735487431927,-547.8,0.0001154,2]
[347058901,1735487431936,-500.0,0.0001154,2]
[347058902,1735487431945,-1101.51,0.0001154,2]
[347058903,1735487431955,-500.0,0.0001154,2]
[347058904,1735487431965,-3377.45,0.0001154,2]
[347058905,1735487431974,-500.0,0.0001154,2]
[347058906,1735487431984,-500.0,0.0001154,2]
[347058907,1735487431993,-500.0,0.0001154,2]
[347058908,1735487432005,-500.0,0.0001154,2]
[347058909,1735487432014,-500.0,0.0001154,2]
[347058911,1735487432024,-500.0,0.0001154,2]
[347058912,1735487432033,-5847.01,0.0001154,2]
[347058914,1735487432042,-500.0,0.0001154,2]
[347058916,1735487432052,-500.0,0.0001154,2]
[347058918,1735487432060,-500.0,0.0001154,2]
[347058920,1735487432070,-500.0,0.0001154,2]
[347058922,1735487432079,-7119.8061955,0.0001154,2]
[347058925,1735487432091,-5498.3938045,0.0001154,2]
[347058928,1735487432100,-500.0,0.0001154,2]
[347058930,1735487432109,-500.0,0.0001154,2]
[347058933,1735487432118,-500.0,0.0001154,2]
[347058936,1735487432128,-500.0,0.0001154,2]
[347058939,1735487432138,-500.0,0.0001154,2]
[347058941,1735487432147,-500.0,0.0001154,2]
[347058944,1735487432157,-500.0,0.0001154,2]
[347058946,1735487432166,-500.0,0.0001154,2]
[347058948,1735487432175,-500.0,0.0001154,2]
[347058950,1735487432185,-500.0,0.0001154,2]
[347058952,1735487432194,-500.0,0.0001154,2]
[347058954,1735487432203,-500.0,0.0001154,2]
[347058956,1735487432212,-5301.62137351,0.0001154,2]
[347058959,1735487432224,-326.23862649,0.0001154,2]
[347058961,1735487432233,-500.0,0.0001154,2]
[347058963,1735487432243,-2118.04,0.0001154,2]
[347058965,1735487432254,-500.0,0.0001154,2]
[347058967,1735487432263,-500.0,0.0001154,2]
[347058969,1735487432273,-1024.14,0.0001154,2]
[347058971,1735487432282,-500.0,0.0001154,2]
[347058973,1735487432292,-500.0,0.0001154,2]
[347058975,1735487432301,-500.0,0.0001154,2]
[347058977,1735487432311,-500.0,0.0001154,2]
[347058979,1735487432321,-500.0,0.0001154,2]
[347058981,1735487432330,-500.0,0.0001154,2]
[347058983,1735487432340,-500.0,0.0001154,2]
[347058985,1735487432350,-500.0,0.0001154,2]
[347058987,1735487432359,-500.0,0.0001154,2]
[347058989,1735487432369,-2943.7,0.0001154,2]
[347058991,1735487432379,-500.0,0.0001154,2]
[347058993,1735487432389,-500.0,0.0001154,2]
[347058995,1735487432399,-320.85316514,0.0001154,2]
[347058997,1735487432409,-500.0,0.0001154,2]
[347058999,1735487432419,-500.0,0.0001154,2]
[347059001,1735487432430,-500.0,0.0001154,2]
[347059003,1735487432440,-500.0,0.0001154,2]
[347059005,1735487432450,-500.0,0.0001154,2]
[347059006,1735487432460,-500.0,0.0001154,2]
[347059008,1735487432470,-500.0,0.0001154,2]
[347059010,1735487432481,-500.0,0.0001154,2]
[347059012,1735487432491,-500.0,0.0001154,2]
[347059014,1735487432504,-731.7,0.0001154,2]
[347059016,1735487432516,-1625.44,0.0001154,2]
[347059019,1735487432528,-861.96,0.0001154,2]
[347059021,1735487432543,-500.0,0.0001154,2]
[347059022,1735487432553,-500.0,0.0001154,2]
[347059025,1735487432564,-4789.71,0.0001154,2]
[347059026,1735487432575,-5540.27,0.0001154,2]
[347059028,1735487432586,-500.0,0.0001154,2]
[347059030,1735487432596,-3549.32,0.0001154,2]
[347059033,1735487432606,-2793.93,0.0001154,2]
[347059035,1735487432617,-500.0,0.0001154,2]
[347059036,1735487432627,-500.0,0.0001154,2]
[347059038,1735487432636,-500.0,0.0001154,2]
[347059041,1735487432646,-2378.28,0.0001154,2]
[347059042,1735487432656,-1188.4,0.0001154,2]
[347059044,1735487432665,-493.06495457,0.0001154,2]
[347059046,1735487432674,-1157.33,0.0001154,2]
[347059048,1735487432684,-500.0,0.0001154,2]
[347059050,1735487432693,-500.0,0.0001154,2]
[347059052,1735487432702,-500.0,0.0001154,2]
[347059054,1735487432711,-500.0,0.0001154,2]
[347059056,1735487432721,-500.0,0.0001154,2]
[347059058,1735487432730,-500.0,0.0001154,2]
[347059060,1735487432740,-19466.85,0.0001154,2]
[347059062,1735487432750,-500.0,0.0001154,2]
[347059064,1735487432763,-500.0,0.0001154,2]
[347059066,1735487432773,-11666.88,0.0001154,2]
[347059068,1735487432782,-500.0,0.0001154,2]
[347059070,1735487432791,-1153.52,0.0001154,2]
[347059072,1735487432800,-4802.24,0.0001154,2]
[347059074,1735487432809,-500.0,0.0001154,2]
[347059076,1735487432819,-500.0,0.0001154,2]
[347059078,1735487432828,-500.0,0.0001154,2]
[347059080,1735487432840,-500.0,0.0001154,2]
[347059082,1735487432849,-2937.25,0.0001154,2]
[347059084,1735487432858,-5493.04,0.0001154,2]
[347059086,1735487432867,-500.0,0.0001154,2]
[347059088,1735487432876,-4441.05,0.0001154,2]
[347059090,1735487432885,-154.796627,0.0001154,2]
[347059092,1735487432894,-3248.125967,0.0001154,2]
[347059094,1735487432903,-509.77,0.0001154,2]
[347059096,1735487432912,-152.73694,0.0001154,2]
[347059098,1735487432921,-3368.67,0.0001154,2]
[347059099,1735487432930,-2545.87,0.0001154,2]
[347059101,1735487432939,-366.17996418,0.0001154,2]
[347059103,1735487432948,-19720.75,0.0001154,2]
[347059105,1735487432957,-3204.624175,0.0001154,2]
[347059106,1735487432966,-2778.15,0.0001154,2]
[347059107,1735487432975,-500.0,0.0001154,2]
[347059108,1735487432983,-500.0,0.0001154,2]
[347059109,1735487432992,-800.96,0.0001154,2]
[347059110,1735487433003,-1779.89,0.0001154,2]
[347059111,1735487433013,-500.0,0.0001154,2]
[347059112,1735487433022,-7492.63,0.0001154,2]
[347059113,1735487433031,-1761.58,0.0001154,2]
[347059114,1735487433040,-801.2,0.0001154,2]
[347059116,1735487433051,-500.0,0.0001154,2]
[347059117,1735487433061,-500.0,0.0001154,2]
[347059119,1735487433070,-1589.07,0.0001154,2]
[347059121,1735487433080,-500.0,0.0001154,2]
[347059123,1735487433090,-500.0,0.0001154,2]
[347059125,1735487433099,-500.0,0.0001154,2]
[347059127,1735487433109,-500.0,0.0001154,2]
[347059129,1735487433119,-500.0,0.0001154,2]
[347059131,1735487433128,-499.24323303,0.0001154,2]
[347059133,1735487433138,-2076.32,0.0001154,2]
[347059135,1735487433148,-519.72,0.0001154,2]
[347059137,1735487433157,-4442.48,0.0001154,2]
[347059139,1735487433167,-2153.26,0.0001154,2]
[347059141,1735487433176,-728.89,0.0001154,2]
[347059143,1735487433187,-4864.73,0.0001154,2]
[347059145,1735487433196,-500.0,0.0001154,2]
[347059147,1735487433205,-500.0,0.0001154,2]
[347059149,1735487433215,-1491.18,0.0001154,2]
[347059151,1735487433225,-516.19511972,0.0001154,2]
[347059153,1735487433235,-500.0,0.0001154,2]
[347059155,1735487433245,-606.13,0.0001154,2]
[347059157,1735487433258,-593.11992648,0.00011541,2]
[347059159,1735487433273,-505.54809597,0.00011541,2]
[347059161,1735487433282,-990.5,0.00011541,2]
[347059163,1735487433292,-500.0,0.00011541,2]
[347059165,1735487433301,-500.0,0.00011541,2]
[347059167,1735487433311,-500.0,0.00011541,2]
[347059169,1735487433321,-500.0,0.00011541,2]
[347059171,1735487433332,-1869.45,0.00011541,2]
[347059173,1735487433342,-777.06,0.00011541,2]
[347059175,1735487433352,-776.39,0.00011541,2]
[347059177,1735487433362,-500.0,0.00011541,2]
[347059179,1735487433372,-661.21,0.00011541,2]
[347059181,1735487433382,-996.0,0.00011541,2]
[347059183,1735487433392,-568.2,0.00011541,2]
[347059185,1735487433401,-500.0,0.00011541,2]
[347059187,1735487433412,-1271.12,0.00011541,2]
[347059189,1735487433422,-500.0,0.00011541,2]
[347059191,1735487433437,-500.0,0.00011541,2]
[347059193,1735487433447,-500.0,0.00011541,2]
[347059195,1735487433456,-2116.14,0.00011541,2]
[347059197,1735487433466,-500.0,0.00011541,2]
[347059199,1735487433476,-500.0,0.00011541,2]
[347059201,1735487433486,-1047.8,0.00011541,2]
[347059203,1735487433497,-500.0,0.00011541,2]
[347059205,1735487433515,-500.0,0.00011541,2]
[347059207,1735487433525,-1293.9,0.00011541,2]
[347059209,1735487433535,-502.67725579,0.00011541,2]
[347059212,1735487433546,-500.0,0.00011541,2]
[347059214,1735487433557,-771.92,0.00011541,2]
[347059215,1735487433566,-500.0,0.00011541,2]
[347059217,1735487433577,-1113.14,0.00011541,2]
[347059219,1735487433586,-500.0,0.00011541,2]
[347059222,1735487433597,-500.0,0.00011541,2]
[347059224,1735487433607,-921.81,0.00011541,2]
[347059226,1735487433617,-635.74,0.00011541,2]
[347059228,1735487433627,-500.0,0.00011541,2]
[347059230,1735487433637,-500.0,0.00011541,2]
[347059232,1735487433647,-521.15,0.00011541,2]
[347059233,1735487433657,-1007.4,0.00011541,2]
[347059236,1735487433668,-836.91,0.00011541,2]
[347059237,1735487433678,-500.0,0.00011541,2]
[347059239,1735487433688,-586.67,0.00011541,2]
[347059241,1735487433697,-500.0,0.00011541,2]
[347059244,1735487433707,-500.0,0.00011541,2]
[347059245,1735487433717,-500.0,0.00011541,2]
[347059247,1735487433726,-525.3387522,0.00011541,2]
[347059250,1735487433737,-2293.87,0.00011541,2]
[347059252,1735487433746,-1270.17,0.00011541,2]
[347059253,1735487433759,-500.0,0.00011541,2]
[347059256,1735487433769,-500.0,0.00011541,2]
[347059258,1735487433780,-1370.83,0.00011541,2]
[347059260,1735487433791,-500.0,0.00011541,2]
[347059262,1735487433802,-500.0,0.00011541,2]
[347059264,1735487433812,-1448.93,0.00011541,2]
[347059266,1735487433824,-500.0,0.00011541,2]
[347059268,1735487433834,-505.57020839,0.00011541,2]
[347059270,1735487433849,-2000.0,0.00011541,2]
[347059272,1735487433859,-500.0,0.00011541,2]
[347059274,1735487433868,-500.0,0.00011541,2]
[347059275,1735487433877,-500.0,0.00011541,2]
[347059277,1735487433888,-1007.82,0.00011541,2]
[347059280,1735487433898,-500.0,0.00011541,2]
[347059282,1735487433909,-500.0,0.00011541,2]
[347059284,1735487433918,-200.0,0.00011541,2]
[347059286,1735487433929,-500.0,0.00011541,2]
[347059288,1735487433939,-500.0,0.00011541,2]
[347059290,1735487433948,-2066.52,0.00011541,2]
[347059291,1735487433958,-500.0,0.00011541,2]
[347059293,1735487433967,-1071.29,0.00011541,2]
[347059295,1735487433977,-500.0,0.00011541,2]
[347059297,1735487433986,-500.0,0.00011541,2]
[347059299,1735487433995,-973.07,0.00011541,2]
[347059301,1735487434008,-957.07,0.00011541,2]
[347059303,1735487434017,-500.0,0.00011541,2]
[347059305,1735487434027,-500.0,0.00011541,2]
[347059307,1735487434036,-682.21,0.00011541,2]
[347059309,1735487434046,-500.0,0.00011541,2]
[347059311,1735487434056,-2274.37,0.00011541,2]
[347059313,1735487434066,-2035.93,0.00011541,2]
[347059315,1735487434076,-686.46,0.00011541,2]
[347059317,1735487434085,-500.0,0.00011541,2]
[347059319,1735487434096,-1221.34,0.00011541,2]
[347059321,1735487434105,-500.0,0.00011541,2]
[347059323,1735487434115,-500.0,0.00011541,2]
[347059325,1735487434125,-500.0,0.00011541,2]
[347059327,1735487434134,-500.0,0.00011541,2]
[347059329,1735487434144,-1731.56,0.00011541,2]
[347059331,1735487434154,-1570.41,0.00011541,2]
[347059333,1735487434164,-877.27,0.00011541,2]
[347059335,1735487434173,-500.0,0.00011541,2]
[347059337,1735487434183,-500.0,0.00011541,2]
[347059339,1735487434193,-500.0,0.00011541,2]
[347059341,1735487434203,-500.0,0.00011541,2]
[347059343,1735487434213,-500.0,0.00011541,2]
[347059345,1735487434222,-500.0,0.00011541,2]
[347059347,1735487434231,-500.0,0.00011541,2]
[347059349,1735487434241,-523.71,0.00011541,2]
[347059351,1735487434252,-500.0,0.00011541,2]
[347059353,1735487434262,-2019.64,0.00011541,2]
[347059355,1735487434271,-500.0,0.00011541,2]
[347059357,1735487434280,-500.0,0.00011541,2]
[347059359,1735487434289,-1189.43,0.00011541,2]
[347059361,1735487434299,-500.0,0.00011541,2]
[347059363,1735487434309,-2311.38,0.00011541,2]
[347059365,1735487434319,-500.0,0.00011541,2]
[347059367,1735487434328,-500.0,0.00011541,2]
[347059369,1735487434338,-500.0,0.00011541,2]
[347059371,1735487434348,-502.82,0.00011541,2]
[347059373,1735487434357,-500.0,0.00011541,2]
[347059375,1735487434367,-500.0,0.00011541,2]
[347059377,1735487434377,-500.0,0.00011541,2]
[347059379,1735487434387,-1783.98,0.00011541,2]
[347059381,1735487434397,-500.0,0.00011541,2]
[347059383,1735487434407,-444.29358768,0.00011541,2]
[347059385,1735487434417,-1534.43,0.00011541,2]
[347059387,1735487434427,-500.0,0.00011541,2]
[347059389,1735487434437,-523.85,0.00011541,2]
[347059391,1735487434446,-500.0,0.00011541,2]
[347059393,1735487434456,-500.0,0.00011541,2]
[347059395,1735487434466,-500.0,0.00011541,2]
[347059397,1735487434476,-979.04,0.00011541,2]
[347059399,1735487434486,-616.9,0.00011541,2]
[347059401,1735487434496,-500.0,0.00011541,2]
[347059403,1735487434507,-572.74632977,0.00011541,2]
[347059405,1735487434517,-500.0,0.00011541,2]
[347059407,1735487434527,-500.0,0.00011541,2]
[347059409,1735487434537,-500.0,0.00011541,2]
[347059411,1735487434546,-1231.35,0.00011541,2]
[347059413,1735487434556,-3219.4,0.00011541,2]
[347059415,1735487434565,-500.0,0.00011541,2]
[347059417,1735487434575,-529.27,0.00011541,2]
[347059419,1735487434584,-500.0,0.00011541,2]
[347059421,1735487434594,-500.0,0.00011541,2]
[347059423,1735487434604,-500.0,0.00011541,2]
[347059425,1735487434614,-1178.24,0.00011541,2]
[347059427,1735487434623,-500.0,0.00011541,2]
[347059429,1735487434632,-1174.17,0.00011541,2]
[347059431,1735487434641,-2091.17,0.00011541,2]
[347059433,1735487434651,-1011.86,0.00011541,2]
[347059435,1735487434660,-342.70925485,0.00011541,2]
[347059437,1735487434670,-1150.28,0.00011541,2]
[347059439,1735487434679,-500.0,0.00011541,2]
[347059441,1735487434688,-842.1,0.00011541,2]
[347059443,1735487434698,-500.0,0.00011541,2]
[347059445,1735487434707,-500.0,0.00011541,2]
[347059447,1735487434716,-500.0,0.00011541,2]
[347059449,1735487434725,-1013.35,0.00011541,2]
[347059451,1735487434735,-500.0,0.00011541,2]
[347059453,1735487434744,-1355.1,0.00011541,2]
[347059455,1735487434754,-500.0,0.00011541,2]
[347059457,1735487434763,-633.84248383,0.00011541,2]
[347059459,1735487434772,-1063.22,0.00011541,2]
[347059461,1735487434782,-881.36,0.00011541,2]
[347059463,1735487434791,-1045.29,0.00011541,2]
[347059465,1735487434800,-849.31,0.00011541,2]
[347059467,1735487434809,-500.0,0.00011541,2]
[347059469,1735487434818,-500.0,0.00011541,2]
[347059471,1735487434828,-500.0,0.00011541,2]
[347059473,1735487434840,-550.36,0.00011541,2]
[347059475,1735487434849,-500.0,0.00011541,2]
[347059477,1735487434859,-1043.95,0.00011541,2]
[347059479,1735487434868,-1264.38,0.00011541,2]
[347059481,1735487434878,-500.0,0.00011541,2]
[347059483,1735487434887,-500.0,0.00011541,2]
[347059484,1735487434897,-1853.98,0.00011541,2]
[347059485,1735487434906,-1114.36,0.00011541,2]
[347059486,1735487434915,-1637.15,0.00011541,2]
[347059487,1735487434924,-1215.02,0.00011541,2]
[347059488,1735487434934,-1665.46,0.00011541,2]
[347059489,1735487434943,-500.0,0.00011541,2]
[347059490,1735487434953,-500.0,0.00011541,2]
[347059491,1735487434962,-947.96,0.00011541,2]
[347059492,1735487434971,-198.58884789,0.00011541,2]
[347059494,1735487434980,-966.5,0.00011541,2]
[347059496,1735487434990,-1082.45,0.00011541,2]
[347059499,1735487434999,-500.0,0.00011541,2]
[347059501,1735487435009,-500.0,0.00011541,2]
[347059502,1735487435018,-809.64,0.00011541,2]
[347059504,1735487435028,-500.0,0.00011541,2]
[347059506,1735487435037,-500.0,0.00011541,2]
[347059508,1735487435047,-500.0,0.00011541,2]
[347059510,1735487435056,-1677.46,0.00011541,2]
[347059512,1735487435065,-500.0,0.00011541,2]
[347059514,1735487435074,-500.0,0.00011541,2]
[347059516,1735487435084,-500.0,0.00011541,2]
[347059518,1735487435093,-500.0,0.00011541,2]
[347059521,1735487435104,-500.0,0.00011541,2]
[347059523,1735487435114,-946.34,0.00011541,2]
[347059525,1735487435123,-939.88,0.00011541,2]
[347059527,1735487435132,-500.0,0.00011541,2]
[347059529,1735487435141,-500.0,0.00011541,2]
[347059531,1735487435151,-3339.76,0.00011541,2]
[347059533,1735487435160,-1875.01,0.00011541,2]
[347059535,1735487435169,-1902.26,0.00011541,2]
[347059537,1735487435178,-1040.4,0.00011541,2]
[347059539,1735487435187,-500.0,0.00011541,2]
[347059541,1735487435198,-500.0,0.00011541,2]
[347059543,1735487435207,-2127.2,0.00011541,2]
[347059545,1735487435216,-500.0,0.00011541,2]
[347059547,1735487435226,-500.0,0.00011541,2]
[347059549,1735487435235,-500.0,0.00011541,2]
[347059551,1735487435244,-2154.5,0.00011541,2]
[347059553,1735487435254,-1190.36,0.00011541,2]
[347059555,1735487435263,-1054.43,0.00011541,2]
[347059557,1735487435272,-500.0,0.00011541,2]
[347059558,1735487435281,-15293.78,0.00011541,2]
[347059560,1735487435291,-500.0,0.00011541,2]
[347059562,1735487435300,-1144.85,0.00011541,2]
[347059564,1735487435309,-500.0,0.00011541,2]
[347059566,1735487435319,-500.0,0.00011541,2]
[347059568,1735487435328,-1649.37,0.00011541,2]
[347059570,1735487435337,-500.0,0.00011541,2]
[347059572,1735487435346,-1251.26,0.00011541,2]
[347059574,1735487435355,-500.0,0.00011541,2]
[347059598,1735487435567,-749.82,0.00011541,2]
[347059600,1735487435578,-500.0,0.00011541,2]
[347059602,1735487435588,-500.0,0.00011541,2]
[347059604,1735487435597,-500.0,0.00011541,2]
[347059606,1735487435607,-580.69,0.00011541,2]
[347059608,1735487435616,-500.0,0.00011541,2]
[347059610,1735487435626,-11618.81,0.00011541,2]
[347059612,1735487435636,-845.43,0.00011541,2]
[347059614,1735487435646,-1972.85,0.00011541,2]
[347059616,1735487435655,-1508.18,0.00011541,2]
[347059618,1735487435665,-1076.09,0.00011541,2]
[347059620,1735487435674,-979.42,0.00011541,2]
[347059622,1735487435683,-500.0,0.00011541,2]
[347059624,1735487435692,-500.0,0.00011541,2]
[347059626,1735487435702,-2866.28,0.00011541,2]
[347059628,1735487435711,-500.0,0.00011541,2]
[347059630,1735487435721,-500.0,0.00011541,2]
[347059632,1735487435730,-2611.11,0.00011541,2]
[347059634,1735487435739,-777.32,0.00011541,2]
[347059636,1735487435748,-500.0,0.00011541,2]
[347059638,1735487435760,-3933.72,0.00011541,2]